bitfinex/quotes_ETHUSD_20220226
["timestamp","ask_amount","ask_price","bid_price","bid_amount"]
[1645901184280,0.44296515,2781.0,2780.6,1.0]
[1645901184481,1.51919085,2780.9,2780.6,1.0]
[1645901184680,1.51919085,2780.9,2780.6,1.433]
[1645901185288,0.44296515,2781.0,2780.7,0.1438]
[1645901185494,0.44296515,2781.0,2780.8,0.433]
[1645901185684,0.00423968,2780.9,2780.8,2.53101]
[1645901185882,0.00423968,2780.9,2780.8,2.88881]
[1645901186083,0.00423968,2780.9,2780.8,4.88881]
[1645901186484,0.44296515,2781.0,2780.8,16.40462519]
[1645901186937,0.44720475,2781.0,2780.8,14.05231]
[1645901187133,0.44720475,2781.0,2780.9,1.0]
[1645901187329,0.44720475,2781.0,2780.9,10.5962]
[1645901187731,0.44296515,2781.0,2780.9,12.49514]
[1645901187931,0.44296515,2781.0,2780.9,12.44514]
[1645901195429,0.44296515,2781.0,2780.9,11.5462]
[1645901197234,1.96230605,2781.0,2780.9,11.5462]
[1645901198037,1.96230605,2781.0,2780.9,10.5462]
[1645901198498,0.44296515,2781.0,2780.9,10.5462]
[1645901199290,0.44296515,2781.0,2780.9,11.5462]
[1645901200293,0.44296515,2781.0,2780.9,11.8462]
[1645901206792,0.00396739,2781.7,2781.0,10.5]
[1645901206992,12.46963188,2782.2,2781.1,4.9581015]
[1645901206993,0.00396739,2781.8,2781.1,4.9581015]
[1645901207192,0.01695558,2781.5,2781.3,4.99768641]
[1645901207390,0.01695558,2781.5,2781.4,10.1619]
[1645901207589,0.01695558,2781.5,2781.4,14.19280564]
[1645901207788,0.01695558,2781.5,2781.4,15.19280564]
[1645901207990,0.00396739,2782.2,2781.4,26.24000626]
[1645901208193,0.5,2782.3,2781.5,11.01992608]
[1645901208394,0.00884379,2782.0,2781.6,10.49307]
[1645901208592,0.00884379,2782.0,2781.9,1.0]
[1645901208799,0.00884379,2782.0,2781.9,1.433]
[1645901208996,0.00884379,2782.0,2781.9,20.86744859]
[1645901209197,0.00396739,2782.9,2781.9,18.70530626]
[1645901209439,1.88069709,2782.9,2781.9,17.3096]
[1645901209630,0.00221446,2782.1,2781.9,17.3096]
[1645901210432,1.5189297,2782.4,2781.9,17.3096]
[1645901210634,1.52289709,2782.7,2781.9,17.3096]
[1645901210934,0.00221446,2782.1,2781.9,17.84268413]
[1645901211338,1.47511155,2782.5,2781.9,17.84268413]
[1645901211532,0.00885651,2782.6,2781.9,17.84268413]
[1645901211732,3.5,2782.8,2781.9,17.84268413]
[1645901212740,3.8578,2782.8,2781.9,11.12668413]
[1645901212940,4.0014,2782.8,2781.9,11.12668413]
[1645901213178,0.00236195,2782.5,2781.9,11.12668413]
[1645901213579,0.06303655,2782.3,2781.9,11.12668413]
[1645901213984,0.06303655,2782.3,2782.0,1.0]
[1645901214178,0.06303655,2782.3,2782.1,0.433]
[1645901214385,0.00236195,2782.2,2782.0,0.45357914]
[1645901214587,0.00236195,2782.2,2782.1,0.433]
[1645901215384,0.06303655,2782.3,2782.1,0.433]
[1645901215583,0.06772937,2782.3,2782.1,0.433]
[1645901216596,0.06303655,2782.3,2782.1,0.433]
[1645901216788,0.06763308,2782.3,2782.1,0.433]
[1645901217754,0.06303655,2782.3,2782.1,0.433]
[1645901217955,0.06763308,2782.3,2782.1,0.733]
[1645901218757,0.06763308,2782.3,2782.2,0.4528]
[1645901218957,0.06303655,2782.3,2782.2,0.8858]
[1645901224191,0.00453679,2782.4,2782.2,0.8858]
[1645901224648,0.00453679,2782.4,2782.3,0.4528]
[1645901224847,0.00453679,2782.4,2782.3,0.8858]
[1645901225047,0.06698447,2782.9,2782.3,0.433]
[1645901225648,0.5,2782.4,2782.3,0.433]
[1645901225848,0.06698447,2782.9,2782.3,0.433]
[1645901227650,0.00484999,2782.7,2782.3,0.433]
[1645901228590,3.56698447,2782.9,2782.3,0.433]
[1645901228792,0.00485008,2782.6,2782.3,0.433]
[1645901229389,0.06698447,2782.9,2782.3,0.433]
[1645901229390,1.40441692,2782.9,2782.3,0.433]
[1645901230594,3.8578,2783.1,2782.3,0.433]
[1645901231400,1.51892012,2783.0,2782.3,0.433]
[1645901231599,1.87672012,2783.0,2782.3,0.433]
[1645901231797,1.51892012,2782.9,2782.3,0.433]
[1645901232447,1.51892012,2782.9,2782.5,0.00485048]
[1645901233248,1.51892012,2782.9,2782.3,0.433]
[1645901233648,1.51892012,2782.9,2782.6,0.0048504]
[1645901234449,0.00614763,2782.4,2782.3,0.433]
[1645901239656,0.00461,2783.1,2782.3,0.433]
[1645901239856,1.51882865,2783.0,2782.3,0.433]
[1645901240061,1.51882865,2783.0,2782.3,0.8858]
[1645901240255,1.51882865,2783.0,2782.5,0.89859]
[1645901240455,1.51882865,2782.9,2782.6,0.433]
[1645901240655,8.51850726,2783.3,2782.6,0.433]
[1645901240854,0.002503,2783.1,2782.6,0.433]
[1645901241056,0.04286106,2783.1,2782.6,0.433]
[1645901241658,1.518792,2783.0,2782.6,0.433]
[1645901242055,1.518792,2783.0,2782.6,0.8858]
[1645901243695,0.04521121,2783.1,2782.7,12.0]
[1645901243895,0.04521121,2783.1,2782.8,0.433]
[1645901244095,0.04521121,2783.1,2782.9,1.35121]
[1645901244290,0.04035806,2783.1,2783.0,0.433]
[1645901244491,0.0452113,2783.1,2783.0,10.5908]
[1645901244693,0.0452113,2783.1,2783.0,11.7366]
[1645901244897,0.0452113,2783.1,2783.0,12.7366]
[1645901245092,0.0452113,2783.1,2783.0,13.1894]
[1645901245301,0.04035806,2783.1,2783.0,13.1894]
[1645901245492,0.04035806,2783.1,2783.0,12.1894]
[1645901250542,0.04035806,2783.1,2783.0,12.5472]
[1645901250996,0.04035806,2783.1,2783.0,13.5472]
[1645901251597,0.04035806,2783.1,2783.0,12.5472]
[1645901251998,0.04035806,2783.1,2783.0,12.1894]
[1645901253199,0.01462118,2783.6,2783.0,11.7366]
[1645901253402,0.01462118,2783.6,2783.2,0.4528]
[1645901253597,0.01462118,2783.6,2783.2,0.8858]
[1645901253797,5.36722477,2784.0,2783.2,0.733]
[1645901254000,5.36722477,2784.0,2783.3,0.4528]
[1645901254197,4.6883845,2784.0,2783.3,0.4528]
[1645901254454,6.5883845,2784.0,2783.2,0.433]
[1645901254647,6.59230295,2784.0,2783.2,0.383]
[1645901254847,6.59230295,2784.0,2783.3,1.0]
[1645901255049,6.5883845,2784.0,2783.3,1.0]
[1645901255653,3.5,2784.0,2783.3,1.0]
[1645901256250,4.17492182,2784.0,2783.3,1.0]
[1645901256452,0.00485275,2783.8,2783.3,1.0]
[1645901257350,3.50391845,2784.0,2783.3,1.54839867]
[1645901257651,0.00452227,2783.7,2783.3,0.54839867]
[1645901257851,0.00452227,2783.7,2783.4,1.433]
[1645901258484,3.5,2784.0,2783.4,1.433]
[1645901258689,1.53272182,2784.1,2783.4,1.433]
[1645901258892,0.00452227,2783.7,2783.4,1.433]
[1645901259688,3.50391845,2784.0,2783.4,1.433]
[1645901259689,0.00391845,2784.0,2783.4,1.433]
[1645901259891,1.53664027,2784.1,2783.4,2.33128]
[1645901260093,0.00452227,2783.7,2783.4,2.33128]
[1645901260898,0.00391845,2784.0,2783.4,2.33128]
[1645901261092,1.21913734,2783.8,2783.4,1.89828]
[1645901261296,0.00452227,2783.7,2783.4,1.89828]
[1645901261944,0.00452227,2783.7,2783.4,2.33128]
[1645901262138,3.50391845,2784.0,2783.4,2.33128]
[1645901262339,3.5,2784.0,2783.4,2.33128]
[1645901262537,0.00454445,2783.7,2783.4,2.33128]
[1645901262939,0.00454445,2783.7,2783.4,1.33128]
[1645901263139,0.00454445,2783.7,2783.5,1.0]
[1645901263343,3.50391845,2784.0,2783.5,1.0]
[1645901263549,0.00454445,2783.7,2783.5,1.0]
[1645901263743,1.51828958,2783.6,2783.5,1.433]
[1645901267300,0.00454296,2783.7,2783.5,1.433]
[1645901267498,1.51828958,2783.6,2783.5,1.433]
[1645901268500,0.00218625,2783.7,2783.5,1.433]
[1645901269303,1.51828958,2783.9,2783.5,1.433]
[1645901269549,0.00218638,2783.7,2783.5,1.433]
[1645901270446,0.00218638,2783.7,2783.5,1.733]
[1645901270650,1.51828958,2784.0,2783.5,1.733]
[1645901270847,0.00454675,2783.7,2783.5,1.733]
[1645901271046,0.00454675,2783.7,2783.5,0.733]
[1645901271251,0.00454675,2783.7,2783.6,1.0]
[1645901271450,0.00454675,2783.7,2783.6,1.433]
[1645901271648,0.00454675,2783.7,2783.6,10.8892]
[1645901271851,0.00391845,2784.0,2783.7,0.89813]
[1645901272052,0.5,2784.1,2783.9,1.0]
[1645901272251,1.51814132,2784.0,2783.9,1.0]
[1645901272451,1.51814132,2784.0,2783.9,1.433]
[1645901272855,1.51814132,2784.0,2783.9,1.733]
[1645901273286,0.00218638,2784.1,2783.9,1.8766]
[1645901273487,0.00218638,2784.1,2784.0,1.93952]
[1645901273684,0.00218638,2784.1,2784.0,4.37252]
[1645901274087,0.00218638,2784.1,2784.0,5.62954248]
[1645901274296,1.51792874,2784.4,2784.0,5.62954248]
[1645901274487,0.00391845,2784.8,2784.1,1.79591]
[1645901274488,0.00218638,2784.2,2784.1,1.79591]
[1645901274689,0.00218638,2784.2,2784.0,10.26886282]
[1645901274690,1.52011512,2784.2,2784.0,10.26886282]
[1645901274891,0.00218638,2784.2,2784.1,0.433]
[1645901275094,1.18558672,2784.2,2784.1,0.433]
[1645901275291,6.20153494,2784.2,2784.0,9.50095577]
[1645901275493,1.5181346,2784.1,2784.0,9.50095577]
[1645901276497,1.5181346,2784.2,2784.0,9.50095577]
[1645901276692,0.3578,2784.4,2784.0,9.50095577]
[1645901276693,1.5181346,2784.1,2784.0,9.50095577]
[1645901276953,1.2775218,2784.2,2784.0,9.50095577]
[1645901277149,1.5181346,2784.1,2784.0,9.50095577]
[1645901279252,5.0181346,2784.1,2784.0,9.50095577]
[1645901279463,5.8578,2783.9,2783.3,0.25]
[1645901279652,0.3578,2783.7,2782.9,1.1586]
[1645901279852,1.5181346,2783.6,2782.9,1.1586]
[1645901280695,1.5181346,2783.6,2783.0,0.00455138]
[1645901281101,1.5181346,2783.6,2783.1,0.433]
[1645901281300,2.91266466,2783.6,2783.1,0.433]
[1645901281504,1.5181346,2783.5,2783.1,0.433]
[1645901281708,1.5181346,2783.5,2783.4,45.01092192]
[1645901282606,1.5181346,2783.5,2783.4,45.44392192]
[1645901283007,0.00455011,2783.7,2783.4,45.44392192]
[1645901283203,1.5181346,2783.6,2783.4,45.44392192]
[1645901284005,1.5181346,2783.5,2783.4,45.44392192]
[1645901284209,2.15607576,2784.3,2783.4,45.44392192]
[1645901284210,0.00456058,2783.7,2783.4,45.44392192]
[1645901284451,1.5181346,2783.6,2783.4,45.44392192]
[1645901284740,1.5181346,2783.6,2783.4,46.34222192]
[1645901285343,0.00456058,2783.7,2783.5,1.0]
[1645901285544,1.51828411,2783.6,2783.5,1.0]
[1645901287547,1.51828411,2783.6,2783.5,1.433]
[1645901288806,0.00391845,2784.2,2783.5,2.3312]
[1645901288807,0.67492182,2784.1,2783.5,2.3312]
[1645901289009,0.67492182,2784.1,2783.5,1.3312]
[1645901289216,0.67492182,2784.1,2783.7,1.0]
[1645901289425,2.19320593,2784.1,2783.7,1.0]
[1645901290009,0.67492182,2784.0,2783.7,1.0]
[1645901290213,0.00455955,2784.0,2783.7,1.0]
[1645901290411,1.51828411,2783.9,2783.7,1.0]
[1645901290614,1.51828411,2783.8,2783.7,1.0]
[1645901290811,1.51828411,2783.8,2783.7,1.433]
[1645901291011,1.51828411,2783.9,2783.7,1.433]
[1645901291213,1.51828411,2783.9,2783.8,1.0]
[1645901291413,1.52284729,2783.9,2783.8,1.0]
[1645901292257,1.51828411,2783.9,2783.8,1.0]
[1645901292454,0.67492182,2784.0,2783.8,1.0]
[1645901292655,1.51828411,2783.9,2783.8,1.0]
[1645901293861,0.00456309,2784.0,2783.8,1.0]
[1645901294058,1.51828411,2783.9,2783.8,1.0]
[1645901294756,1.51828411,2783.9,2783.5,2.1538]
[1645901294757,0.18643547,2783.6,2783.5,2.1538]
[1645901294958,1.70471958,2783.6,2783.5,1.1538]
[1645901295156,1.70471958,2783.6,2783.5,2.1538]
[1645901295358,1.70471958,2783.6,2783.5,1.0]
[1645901298595,1.70471958,2783.6,2783.5,1.50036334]
[1645901299469,1.70471958,2783.6,2783.5,1.93336334]
[1645901301463,1.60471958,2783.6,2783.5,1.93336334]
[1645901302065,0.08643547,2783.6,2783.5,1.93336334]
[1645901302468,0.08643547,2783.6,2783.5,2.83156334]
[1645901302664,0.08643547,2783.6,2783.5,3.13156334]
[1645901303067,0.08643547,2783.6,2783.5,5.13156334]
[1645901303296,0.00220929,2783.7,2783.6,12.0]
[1645901303494,0.00220929,2783.7,2783.6,28.22804334]
[1645901303691,0.00220929,2783.7,2783.6,30.52804334]
[1645901303892,9.29e-06,2783.7,2783.6,42.80584334]
[1645901304093,1.51803975,2784.2,2783.7,12.1757426]
[1645901304392,1.51803975,2784.2,2784.0,2.7958]
[1645901304591,0.00391845,2784.7,2784.1,0.433]
[1645901304791,2.19282324,2784.9,2784.1,1.433]
[1645901304997,1.51790142,2784.8,2784.4,1.0]
[1645901305200,1.51790142,2784.7,2784.5,0.433]
[1645901305395,1.21559551,2784.9,2784.5,0.433]
[1645901305396,1.51790142,2784.6,2784.5,0.433]
[1645901305796,0.00465656,2784.7,2784.5,0.433]
[1645901305997,1.51790142,2784.6,2784.5,0.433]
[1645901308951,1.51790142,2784.6,2784.5,1.33089]
[1645901310704,0.00457093,2784.7,2784.5,1.33089]
[1645901310903,1.51789884,2784.6,2784.5,1.33089]
[1645901311605,1.51789884,2784.6,2784.5,0.433]
[1645901314212,1.51789884,2784.6,2784.5,0.383]
[1645901314852,0.00457668,2784.7,2784.5,4.183]
[1645901315055,0.00457668,2784.7,2784.6,4.90834432]
[1645901315260,0.00576506,2785.3,2784.8,0.89764]
[1645901315261,0.00968351,2785.3,2784.8,0.89764]
[1645901315463,0.00877661,2785.1,2785.0,1.79528]
[1645901315658,0.00877661,2785.1,2785.0,2.22828]
[1645901316056,0.00877661,2785.1,2785.0,6.72828]
[1645901316263,0.00576506,2785.3,2785.0,4.22828]
[1645901316557,0.00576506,2785.3,2785.2,0.89757]
[1645901316858,0.00576506,2785.3,2785.2,3.86281194]
[1645901317261,0.00576506,2785.3,2785.2,4.86281194]
[1645901317460,0.00576506,2785.3,2785.2,8.36281194]
[1645901317858,0.00576506,2785.3,2785.2,4.86281194]
[1645901319391,0.00576506,2785.3,2785.2,8.36281194]
[1645901319590,0.00576506,2785.3,2785.2,4.86281194]
[1645901321493,0.00576506,2785.3,2785.2,8.36281194]
[1645901321953,0.00576506,2785.3,2785.2,4.86281194]
[1645901322150,0.00576506,2785.3,2785.2,4.63057]
[1645901323352,5.92267885,2785.6,2785.2,4.63057]
[1645901323853,0.00473083,2785.4,2785.3,1.0]
[1645901324052,0.00473083,2785.4,2785.3,2.433]
[1645901324857,5.92267885,2785.6,2785.3,4.22818]
[1645901325055,5.92267885,2785.6,2785.5,1.0]
[1645901325257,0.61840874,2785.4,2785.3,3.79518]
[1645901325458,0.61840874,2785.4,2785.3,2.79518]
[1645901325696,0.61840874,2785.4,2785.3,3.79518]
[1645901326094,0.61840874,2785.4,2785.3,4.79518]
[1645901327997,0.61840874,2785.4,2785.3,5.22818]
[1645901328203,0.61840874,2785.4,2785.3,16.14818]
[1645901329101,0.00455237,2785.5,2785.4,6.5]
[1645901329303,0.01820708,2785.9,2785.6,11.2778]
[1645901329554,8.25989576,2787.3,2785.6,11.2778]
[1645901329555,0.67492182,2787.4,2785.8,16.6938]
[1645901329748,1.51675709,2787.3,2786.3,10.92]
[1645901329951,1.51675709,2787.2,2786.4,12.5773]
[1645901330148,3.5851,2787.7,2786.6,1.0]
[1645901330149,1.51675709,2787.1,2786.6,1.0]
[1645901330347,1.46675709,2787.0,2786.8,1.0]
[1645901330550,4.26002182,2787.7,2786.9,0.433]
[1645901330753,1.08272182,2787.7,2786.9,0.433]
[1645901331549,1.08161646,2787.1,2786.9,1.33006]
[1645901331747,1.08161646,2787.1,2786.9,0.433]
[1645901332549,1.43941646,2787.1,2786.9,0.433]
[1645901333403,1.43941646,2787.1,2786.5,1.0]
[1645901333404,1.39430147,2787.1,2786.5,1.0]
[1645901333599,1.39430147,2787.1,2786.3,0.52550855]
[1645901333600,0.3578,2786.9,2786.3,0.52550855]
[1645901333797,0.3578,2786.7,2786.3,0.52550855]
[1645901334003,0.3578,2786.6,2786.3,0.52550855]
[1645901334206,0.3578,2786.8,2786.3,0.52550855]
[1645901334605,0.3578,2786.6,2786.3,0.95850855]
[1645901334809,0.3578,2786.5,2785.8,1.25]
[1645901335009,3.8578,2786.4,2785.7,7.18191974]
[1645901335207,0.3578,2786.4,2785.7,7.61491974]
[1645901335407,0.1434,2786.8,2785.7,7.61491974]
[1645901335610,3.5,2786.9,2785.7,8.6125]
[1645901335808,3.5,2786.9,2786.2,0.8974]
[1645901336010,4.53161646,2787.1,2786.2,1.3304]
[1645901336405,1.03161646,2787.1,2786.2,1.3304]
[1645901336608,0.00390043,2787.0,2786.3,1.0]
[1645901336806,4.53551689,2787.1,2786.4,0.433]
[1645901337055,4.88941646,2787.1,2786.4,0.433]
[1645901337358,1.27029948,2786.5,2786.4,0.433]
[1645901337757,0.00390043,2787.0,2786.4,0.433]
[1645901337958,3.8578,2787.0,2786.4,0.433]
[1645901338157,0.3578,2787.0,2786.4,0.433]
[1645901338357,0.00488919,2786.6,2786.4,0.433]
[1645901339259,1.29297674,2786.8,2786.4,0.433]
[1645901339457,0.00488915,2786.6,2786.4,0.433]
[1645901340461,0.36170043,2787.1,2786.5,0.89732]
[1645901340713,0.00488915,2786.6,2786.5,1.33032]
[1645901341513,0.00390043,2787.0,2786.5,1.33032]
[1645901341716,0.00390043,2787.2,2786.5,1.33032]
[1645901341918,0.0048891,2786.7,2786.5,1.33032]
[1645901342719,0.00390043,2787.3,2786.5,1.33032]
[1645901342916,0.36170043,2787.5,2786.5,1.33032]
[1645901343128,0.00488906,2786.7,2786.5,1.33032]
[1645901343919,1.14778273,2787.5,2786.5,1.33032]
[1645901344121,1.14778273,2787.5,2786.8,0.89716]
[1645901344122,0.00390043,2787.5,2786.8,0.89716]
[1645901344320,0.01955331,2787.2,2786.9,0.433]
[1645901345272,1.21027454,2787.6,2786.9,0.433]
[1645901345456,0.00488867,2787.2,2786.7,2.50677628]
[1645901345657,0.00488867,2787.2,2786.8,0.433]
[1645901346058,0.00488867,2787.2,2786.8,1.33016]
[1645901346458,0.00390043,2787.6,2786.8,0.433]
[1645901346658,0.00488871,2787.1,2786.8,0.433]
[1645901347657,1.06549365,2787.2,2786.8,0.433]
[1645901347658,3.91170043,2787.7,2786.8,0.433]
[1645901347861,0.00488876,2787.1,2786.8,0.433]
[1645901348061,0.00488876,2787.1,2787.0,0.89716]
[1645901348701,0.00488876,2787.1,2787.0,1.33016]
[1645901348907,0.41170043,2787.7,2787.0,1.33016]
[1645901349100,0.00488867,2787.2,2787.0,1.33016]
[1645901349705,4.17492182,2788.0,2787.0,1.33016]
[1645901349706,0.5,2788.1,2787.2,12.0]
[1645901349911,0.5,2788.1,2787.9,1.0]
[1645901350148,0.5,2788.1,2788.0,3.933]
[1645901350304,1.0,2789.1,2788.0,5.3764]
[1645901350502,1.0,2789.1,2788.5,1.0]
[1645901350503,1.50151354,2789.0,2788.5,1.0]
[1645901350709,1.50151354,2789.0,2788.6,3.933]
[1645901350906,1.50151354,2789.0,2788.7,1.0]
[1645901351110,1.50151354,2789.0,2788.8,0.433]
[1645901351304,1.42051083,2789.0,2788.8,0.433]
[1645901351517,1.50151354,2788.9,2788.8,0.433]
[1645901352968,1.50151354,2788.9,2788.3,1.0]
[1645901352969,5.8578,2788.8,2788.3,1.0]
[1645901353263,5.8578,2788.8,2788.0,0.52601383]
[1645901353264,0.3578,2788.6,2788.0,0.52601383]
[1645901353559,5.5,2788.8,2788.0,0.52601383]
[1645901353560,1.85931354,2788.5,2788.0,0.52601383]
[1645901353762,0.4434,2788.8,2788.0,0.52601383]
[1645901353763,1.85931354,2788.4,2788.0,0.52601383]
[1645901353960,2.72105636,2788.3,2788.0,0.52601383]
[1645901354165,3.07885636,2788.3,2788.0,0.52601383]
[1645901354362,1.21954282,2788.3,2788.0,0.52601383]
[1645901354864,1.48237373,2788.2,2788.0,0.52601383]
[1645901356314,1.48484396,2788.2,2788.0,0.52601383]
[1645901356513,1.84264396,2788.2,2787.5,1.0]
[1645901356720,1.84264396,2788.2,2787.1,8.1759]
[1645901356721,0.3578,2788.0,2787.1,8.1759]
[1645901356912,1.16713521,2787.6,2787.1,8.1759]
[1645901357224,1.16713521,2787.6,2787.1,9.1759]
[1645901357613,1.17205115,2787.6,2787.1,9.61381697]
[1645901357813,0.00491594,2787.6,2787.4,0.89706]
[1645901358211,0.00491594,2787.6,2787.4,1.33006]
[1645901358415,0.00491594,2787.6,2787.4,4.83006]
[1645901358611,0.02354101,2788.2,2787.5,1.0]
[1645901358612,0.00388119,2788.2,2787.5,1.0]
[1645901358812,1.77247408,2788.3,2787.7,0.89696]
[1645901359012,1.48772769,2788.2,2787.7,1.32996]
[1645901359216,1.4838465,2788.2,2787.7,1.32996]
[1645901359465,1.8416465,2788.2,2787.4,1.0]
[1645901359665,1.8416465,2788.2,2787.3,2.1535]
[1645901359666,1.8416465,2788.1,2787.3,2.1535]
[1645901359867,1.4838465,2788.0,2787.3,1.1535]
[1645901360269,0.00388119,2788.2,2787.3,1.1535]
[1645901360270,1.4838465,2787.9,2787.3,1.1535]
[1645901360469,1.4838465,2787.8,2787.3,1.1535]
[1645901360670,0.82220301,2788.5,2787.2,1.0]
[1645901360671,1.48412326,2787.7,2787.2,1.0]
[1645901360874,0.00388119,2787.8,2787.2,1.0]
[1645901361070,1.4841439,2788.0,2787.2,1.0]
[1645901361272,1.48802509,2788.0,2787.2,1.0]
[1645901361472,1.08337405,2787.5,2787.2,1.0]
[1645901361876,1.03337405,2787.5,2787.2,1.0]
[1645901362375,1.39117405,2787.5,2787.1,7.18082064]
[1645901362572,1.39117405,2787.5,2787.1,8.07798064]
[1645901363296,1.39117405,2787.5,2787.1,9.07306]
[1645901363499,1.39117405,2787.5,2787.1,9.0779806]
[1645901363695,1.03337405,2787.5,2787.1,9.0779806]
[1645901364298,1.03337405,2787.5,2787.1,8.0779806]
[1645901364505,1.03337405,2787.5,2787.1,8.07306]
[1645901364699,1.03337405,2787.5,2787.1,9.0779806]
[1645901364902,1.03337405,2787.5,2787.1,8.0779806]
[1645901365705,1.03337405,2787.5,2787.1,8.07306]
[1645901365906,0.36168119,2788.1,2787.1,8.0779806]
[1645901366106,0.25611956,2787.9,2787.1,8.0779806]
[1645901366305,0.25611956,2787.7,2787.1,8.0779806]
[1645901366703,0.25611956,2787.7,2787.1,9.0779806]
[1645901366963,1.41978026,2787.7,2787.1,9.07306]
[1645901367157,0.00388119,2787.9,2787.1,9.07306]
[1645901367354,0.3578,2787.8,2787.1,9.07306]
[1645901367554,1.48570788,2787.7,2787.1,9.07306]
[1645901367955,1.48570788,2787.7,2787.3,1.0]
[1645901368155,0.61742706,2787.2,2787.1,9.07306]
[1645901368555,0.61742706,2787.2,2787.1,10.07306]
[1645901369255,0.61742706,2787.2,2787.1,10.50606]
[1645901369855,0.61742706,2787.2,2787.1,9.45606]
[1645901370256,0.61742706,2787.2,2787.1,8.02306]
[1645901371116,0.61742706,2787.2,2787.1,9.02306]
[1645901371317,0.61742706,2787.2,2787.1,9.59946]
[1645901371515,0.61742706,2787.2,2787.1,10.89946]
[1645901372421,0.61742706,2787.2,2787.1,10.97527085]
[1645901376659,0.61742706,2787.2,2787.1,10.89946]
[1645901377256,0.61742706,2787.2,2787.1,10.97527162]
[1645901377763,0.61742706,2787.2,2787.1,10.89946]
[1645901377958,0.61742706,2787.2,2787.1,10.97527215]
[1645901381021,0.61742706,2787.2,2787.1,10.67527215]
[1645901381223,2.09181234,2787.2,2787.1,9.20171737]
[1645901382874,2.09181234,2787.2,2787.1,8.20171737]
[1645901383083,5.59181234,2787.2,2787.1,8.1259]
[1645901383878,5.59181234,2787.2,2787.1,7.1259]
[1645901386100,5.59181234,2787.2,2787.1,7.2017232]
[1645901386300,2.09181234,2787.2,2787.1,7.2017232]
[1645901387003,2.09181234,2787.2,2787.1,7.1259]
[1645901387606,2.09181234,2787.2,2787.1,7.20172304]
[1645901388211,2.09181234,2787.2,2787.1,7.1259]
[1645901388404,2.09181234,2787.2,2787.1,5.58416659]
[1645901388605,2.09181234,2787.2,2787.1,5.5083443]
[1645901389453,5.59181234,2787.2,2787.1,5.5083443]
[1645901389649,2.09181234,2787.2,2787.1,5.5083443]
[1645901390454,2.09181234,2787.2,2787.1,5.58416778]
[1645901390859,2.09181234,2787.2,2787.1,5.58416735]
[1645901392863,2.09181234,2787.2,2787.1,7.01716735]
[1645901393212,2.09181234,2787.2,2787.1,8.01716735]
[1645901396621,2.09181234,2787.2,2787.1,8.31716735]
[1645901396823,2.09181234,2787.2,2787.1,8.16056735]
[1645901397267,2.09181234,2787.2,2787.1,8.01716735]
[1645901401407,0.61742706,2787.2,2787.1,8.9899066]
[1645901401704,0.61742706,2787.2,2787.1,9.1333066]
[1645901402102,0.61742706,2787.2,2787.1,8.31716735]
[1645901402306,0.61742706,2787.2,2787.1,8.99758271]
[1645901402907,0.61742706,2787.2,2787.1,8.31716735]
[1645901403306,2.06639056,2787.2,2787.1,8.31716735]
[1645901407067,0.61742706,2787.2,2787.1,8.31716735]
[1645901409911,2.06656106,2787.2,2787.1,8.31716735]
[1645901410516,2.06656106,2787.2,2787.1,7.01716735]
[1645901410920,2.06656106,2787.2,2787.1,6.01716735]
[1645901411718,1.96656106,2787.2,2787.1,6.01716735]
[1645901411956,1.96656106,2787.2,2787.1,7.01716735]
[1645901412855,1.86656106,2787.2,2787.1,7.01716735]
[1645901413256,1.86656106,2787.2,2787.1,8.01716735]
[1645901415700,1.86656106,2787.2,2787.1,8.31716735]
[1645901420757,1.86656106,2787.2,2787.1,7.01716735]
[1645901420964,5.36656106,2787.2,2787.1,7.01716735]
[1645901421157,1.86656106,2787.2,2787.1,6.01716735]
[1645901421556,1.86656106,2787.2,2787.1,7.01716735]
[1645901422161,1.86656106,2787.2,2787.1,8.01716735]
[1645901428467,0.41742706,2787.2,2787.1,8.01716735]
[1645901428768,0.36742706,2787.2,2787.1,8.01716735]
[1645901429167,1.81283427,2787.2,2787.1,8.01716735]
[1645901429969,1.81283427,2787.2,2787.1,8.31716735]
[1645901435766,1.81283427,2787.2,2787.1,8.01716735]
[1645901435967,1.81283427,2787.2,2787.1,7.58416735]
[1645901438302,1.81283427,2787.2,2787.1,8.31716735]
[1645901439503,1.81283427,2787.2,2787.1,8.01716735]
[1645901448817,0.36742706,2787.2,2787.1,8.01716735]
[1645901449018,1.8144097,2787.2,2787.1,8.01716735]
[1645901449219,1.81440792,2787.2,2787.1,7.94540735]
[1645901449462,0.36742706,2787.2,2787.1,8.24540735]
[1645901449661,1.81441418,2787.2,2787.1,8.24540735]
[1645901449864,0.36742706,2787.2,2787.1,8.24540735]
[1645901450061,1.81441765,2787.2,2787.1,7.94540735]
[1645901450266,0.36742706,2787.2,2787.1,7.94540735]
[1645901450867,1.81443363,2787.2,2787.1,7.94540735]
[1645901451067,1.81443296,2787.2,2787.1,7.94540735]
[1645901451265,0.36742706,2787.2,2787.1,7.94540735]
[1645901451467,1.81442923,2787.2,2787.1,7.94540735]
[1645901451667,0.36742706,2787.2,2787.1,7.94540735]
[1645901452167,1.81443412,2787.2,2787.1,7.94540735]
[1645901452366,1.81452772,2787.2,2787.1,7.94540735]
[1645901452565,0.36742706,2787.2,2787.1,7.94540735]
[1645901452771,1.8145299,2787.2,2787.1,7.94540735]
[1645901452967,1.81452944,2787.2,2787.1,7.94540735]
[1645901453205,1.81453019,2787.2,2787.1,7.94540735]
[1645901453404,0.36742706,2787.2,2787.1,7.94540735]
[1645901453605,1.81461791,2787.2,2787.1,7.94540735]
[1645901453807,1.81461701,2787.2,2787.1,7.94540735]
[1645901454006,0.36742706,2787.2,2787.1,7.94540735]
[1645901454308,1.81468867,2787.2,2787.1,6.51240735]
[1645901454511,1.81471421,2787.2,2787.1,6.51240735]
[1645901454720,4.5,2787.1,2787.0,0.00493111]
[1645901454917,4.5,2787.1,2786.4,0.93041536]
[1645901454918,0.0045002,2786.8,2786.4,0.93041536]
[1645901455116,0.0045002,2786.8,2786.4,0.68041536]
[1645901455319,0.0045002,2786.8,2786.2,0.68041536]
[1645901455320,1.17042822,2786.7,2786.2,0.68041536]
[1645901455919,1.17042822,2786.7,2786.6,1.0]